[Event "Titled Tuesday Blitz July 26 Early 2022"]
[White "Vovk, Orest"]
[Black "Srihari L R"]
[WhiteFideId "14113490"]
[BlackFideId "46617116"]
[WhiteElo "2203"]
[BlackElo "2170"]
[Result "0-1"]
[Round "11"]
[TimeControl "180+1"]
[Date "2022.07.26"]
[WhiteClock "0:00:05"]
[BlackClock "0:00:42"]

1. h3 {[%clk 0:03:00]}  d5 {[%clk 0:02:54]} 2. e4 {[%clk 0:03:00]}  dxe4 {[%clk 0:02:53]} 3. Nc3 {[%clk 0:03:01]}  Nf6 {[%clk 0:02:48]} 4. Qe2 {[%clk 0:03:00]}  Nc6 {[%clk 0:02:45]} 5. Nxe4 {[%clk 0:03:00]}  Nd4 {[%clk 0:02:44]} 6. Nxf6+ {[%clk 0:02:59]}  gxf6 {[%clk 0:02:45]} 7. Qd1 {[%clk 0:03:00]}  Bf5 {[%clk 0:02:43]} 8. d3 {[%clk 0:03:00]}  Qd7 {[%clk 0:02:42]} 9. Be3 {[%clk 0:03:01]}  O-O-O {[%clk 0:02:41]} 10. Nf3 {[%clk 0:02:55]}  e5 {[%clk 0:02:41]} 11. g4 {[%clk 0:02:48]}  Qc6 {[%clk 0:02:25]} 12. Bxd4 {[%clk 0:02:44]}  exd4 {[%clk 0:02:23]} 13. Bg2 {[%clk 0:02:28]}  Bb4+ {[%clk 0:02:18]} 14. Kf1 {[%clk 0:02:24]}  Be6 {[%clk 0:02:17]} 15. Nxd4 {[%clk 0:02:16]}  Qb6 {[%clk 0:02:14]} 16. Nxe6 {[%clk 0:02:05]}  fxe6 {[%clk 0:02:15]} 17. c3 {[%clk 0:01:37]}  Bc5 {[%clk 0:02:09]} 18. Qb3 {[%clk 0:01:36]}  Rxd3 {[%clk 0:02:02]} 19. Qxb6 {[%clk 0:01:32]}  Bxb6 {[%clk 0:01:57]} 20. Ke2 {[%clk 0:01:29]}  Rhd8 {[%clk 0:01:57]} 21. Rhd1 {[%clk 0:01:27]}  Rxd1 {[%clk 0:01:56]} 22. Rxd1 {[%clk 0:01:28]}  Rxd1 {[%clk 0:01:57]} 23. Kxd1 {[%clk 0:01:29]}  Bxf2 {[%clk 0:01:58]} 24. Be4 {[%clk 0:01:28]}  h6 {[%clk 0:01:57]} 25. Ke2 {[%clk 0:01:28]}  Bg3 {[%clk 0:01:57]} 26. Kf3 {[%clk 0:01:22]}  Bh4 {[%clk 0:01:57]} 27. b3 {[%clk 0:01:14]}  b6 {[%clk 0:01:47]} 28. Bc6 {[%clk 0:01:13]}  Kd8 {[%clk 0:01:46]} 29. b4 {[%clk 0:01:04]}  Be1 {[%clk 0:01:42]} 30. b5 {[%clk 0:01:04]}  Bxc3 {[%clk 0:01:41]} 31. Ke4 {[%clk 0:01:04]}  Ke7 {[%clk 0:01:40]} 32. Kd3 {[%clk 0:01:03]}  Be1 {[%clk 0:01:39]} 33. Ke2 {[%clk 0:00:59]}  Bh4 {[%clk 0:01:37]} 34. Kd3 {[%clk 0:00:59]}  Kd6 {[%clk 0:01:37]} 35. Kd4 {[%clk 0:00:54]}  a6 {[%clk 0:01:35]} 36. a4 {[%clk 0:00:52]}  a5 {[%clk 0:01:35]} 37. Be8 {[%clk 0:00:48]}  f5 {[%clk 0:01:27]} 38. gxf5 {[%clk 0:00:43]}  exf5 {[%clk 0:01:28]} 39. Bg6 {[%clk 0:00:42]}  Bf2+ {[%clk 0:01:21]} 40. Kd3 {[%clk 0:00:41]}  Ke5 {[%clk 0:01:21]} 41. Ke2 {[%clk 0:00:38]}  Bc5 {[%clk 0:01:21]} 42. Kf3 {[%clk 0:00:33]}  Bd6 {[%clk 0:01:19]} 43. Bh7 {[%clk 0:00:31]}  Kf6 {[%clk 0:01:06]} 44. Bg8 {[%clk 0:00:24]}  Kg5 {[%clk 0:01:04]} 45. Be6 {[%clk 0:00:23]}  h5 {[%clk 0:01:03]} 46. Bd7 {[%clk 0:00:23]}  h4 {[%clk 0:01:03]} 47. Be6 {[%clk 0:00:23]}  Kf6 {[%clk 0:01:02]} 48. Bd7 {[%clk 0:00:22]}  Ke5 {[%clk 0:01:03]} 49. Bc8 {[%clk 0:00:19]}  Be7 {[%clk 0:01:00]} 50. Bb7 {[%clk 0:00:17]}  Bg5 {[%clk 0:00:52]} 51. Bc8 {[%clk 0:00:16]}  Bh6 {[%clk 0:00:47]} 52. Bb7 {[%clk 0:00:16]}  Kd4 {[%clk 0:00:47]} 53. Bc8 {[%clk 0:00:09]}  Kc3 {[%clk 0:00:43]} 54. Bxf5 {[%clk 0:00:08]}  Kb3 {[%clk 0:00:44]} 55. Ke2 {[%clk 0:00:08]}  Kxa4 {[%clk 0:00:44]} 56. Bd7 {[%clk 0:00:08]}  Kb3 {[%clk 0:00:42]} 57. Kd3 {[%clk 0:00:07]}  a4 {[%clk 0:00:42]} 58. Be6+ {[%clk 0:00:07]}  Kb2 {[%clk 0:00:42]} 59. Kc4 {[%clk 0:00:05]}  a3 {[%clk 0:00:42]} 0-1


[Site "https://www.chess.com"]

[Event "Titled Tuesday Blitz July 26 Early 2022"]
[White "Xu, Yi"]
[Black "Munkhgal, Gombosuren"]
[WhiteFideId "8605564"]
[BlackFideId "4901266"]
[WhiteElo "2471"]
[BlackElo "2576"]
[Result "1-0"]
[Round "11"]
[TimeControl "180+1"]
[Date "2022.07.26"]
[WhiteClock "0:00:21"]
[BlackClock "0:00:15"]

1. e4 {[%clk 0:03:00]}  d6 {[%clk 0:02:59]} 2. d4 {[%clk 0:03:00]}  Nf6 {[%clk 0:03:00]} 3. Nc3 {[%clk 0:03:00]}  g6 {[%clk 0:03:00]} 4. f4 {[%clk 0:02:59]}  Bg7 {[%clk 0:03:00]} 5. Bd3 {[%clk 0:02:54]}  O-O {[%clk 0:02:59]} 6. Nf3 {[%clk 0:02:54]}  Nc6 {[%clk 0:02:59]} 7. e5 {[%clk 0:02:52]}  dxe5 {[%clk 0:02:59]} 8. fxe5 {[%clk 0:02:50]}  Nh5 {[%clk 0:02:57]} 9. Be2 {[%clk 0:02:50]}  Bg4 {[%clk 0:02:54]} 10. Be3 {[%clk 0:02:46]}  f6 {[%clk 0:02:53]} 11. exf6 {[%clk 0:02:42]}  exf6 {[%clk 0:02:51]} 12. O-O {[%clk 0:02:39]}  Re8 {[%clk 0:02:49]} 13. Bc4+ {[%clk 0:02:28]}  Kh8 {[%clk 0:02:47]} 14. Qd2 {[%clk 0:02:28]}  Ne7 {[%clk 0:02:36]} 15. h3 {[%clk 0:02:23]}  Nf5 {[%clk 0:02:31]} 16. hxg4 {[%clk 0:02:17]}  Nxe3 {[%clk 0:02:30]} 17. gxh5 {[%clk 0:02:16]}  Nxc4 {[%clk 0:02:30]} 18. Qd3 {[%clk 0:02:14]}  Ne3 {[%clk 0:02:23]} 19. Rfe1 {[%clk 0:02:00]}  Nf5 {[%clk 0:02:21]} 20. hxg6 {[%clk 0:02:00]}  hxg6 {[%clk 0:02:18]} 21. g4 {[%clk 0:01:55]}  Ne7 {[%clk 0:01:53]} 22. Kg2 {[%clk 0:01:54]}  c6 {[%clk 0:01:30]} 23. Re6 {[%clk 0:01:18]}  Nd5 {[%clk 0:01:19]} 24. Nxd5 {[%clk 0:01:12]}  Qxd5 {[%clk 0:01:08]} 25. Rxe8+ {[%clk 0:00:41]}  Rxe8 {[%clk 0:01:09]} 26. Qxg6 {[%clk 0:00:27]}  Re2+ {[%clk 0:01:09]} 27. Kg3 {[%clk 0:00:27]}  Qd6+ {[%clk 0:01:00]} 28. Ne5 {[%clk 0:00:26]}  Rxe5 {[%clk 0:00:40]} 29. dxe5 {[%clk 0:00:24]}  Qxe5+ {[%clk 0:00:41]} 30. Kf3 {[%clk 0:00:24]}  Qh2 {[%clk 0:00:28]} 31. Qh5+ {[%clk 0:00:22]}  Qxh5 {[%clk 0:00:27]} 32. gxh5 {[%clk 0:00:22]}  f5 {[%clk 0:00:18]} 33. c3 {[%clk 0:00:20]}  Be5 {[%clk 0:00:16]} 34. Rd1 {[%clk 0:00:19]}  Kh7 {[%clk 0:00:14]} 35. Rd7+ {[%clk 0:00:20]}  Kh6 {[%clk 0:00:15]} 36. Rxb7 {[%clk 0:00:20]}  Kxh5 {[%clk 0:00:15]} 37. Rxa7 {[%clk 0:00:21]} 1-0


[Site "https://www.chess.com"]

[Event "Titled Tuesday Blitz July 26 Early 2022"]
[White "Yeremyan, Alen"]
[Black "Toncheva, Nadya"]
[WhiteFideId "13308998"]
[BlackFideId "2924056"]
[WhiteElo "2158"]
[BlackElo "1888"]
[Result "1-0"]
[Round "11"]
[TimeControl "180+1"]
[Date "2022.07.26"]
[WhiteClock "0:00:34"]
[BlackClock "0:00:06"]

1. g3 {[%clk 0:02:56]}  c5 {[%clk 0:02:58]} 2. Bg2 {[%clk 0:02:53]}  Nc6 {[%clk 0:02:58]} 3. c4 {[%clk 0:02:54]}  g6 {[%clk 0:02:58]} 4. Nc3 {[%clk 0:02:55]}  Bg7 {[%clk 0:02:59]} 5. e3 {[%clk 0:02:56]}  e6 {[%clk 0:02:59]} 6. Nge2 {[%clk 0:02:56]}  Nge7 {[%clk 0:02:59]} 7. O-O {[%clk 0:02:57]}  O-O {[%clk 0:02:59]} 8. d4 {[%clk 0:02:58]}  cxd4 {[%clk 0:02:58]} 9. Nxd4 {[%clk 0:02:58]}  Nxd4 {[%clk 0:02:58]} 10. exd4 {[%clk 0:02:59]}  d5 {[%clk 0:02:58]} 11. cxd5 {[%clk 0:03:00]}  exd5 {[%clk 0:02:58]} 12. Bg5 {[%clk 0:02:59]}  Be6 {[%clk 0:02:53]} 13. Bxe7 {[%clk 0:02:59]}  Qxe7 {[%clk 0:02:53]} 14. Nxd5 {[%clk 0:02:59]}  Bxd5 {[%clk 0:02:51]} 15. Bxd5 {[%clk 0:03:00]}  Rfd8 {[%clk 0:02:47]} 16. Qf3 {[%clk 0:02:59]}  Bxd4 {[%clk 0:02:39]} 17. Rad1 {[%clk 0:02:58]}  Bxb2 {[%clk 0:02:34]} 18. Rb1 {[%clk 0:02:54]}  Qf6 {[%clk 0:02:17]} 19. Bxf7+ {[%clk 0:02:39]}  Qxf7 {[%clk 0:02:12]} 20. Qxf7+ {[%clk 0:02:40]}  Kxf7 {[%clk 0:02:13]} 21. Rxb2 {[%clk 0:02:40]}  b6 {[%clk 0:02:11]} 22. Rb3 {[%clk 0:02:41]}  Rd6 {[%clk 0:02:07]} 23. Rc1 {[%clk 0:02:40]}  Rad8 {[%clk 0:02:05]} 24. Kg2 {[%clk 0:02:39]}  R8d7 {[%clk 0:02:05]} 25. Rc8 {[%clk 0:02:38]}  Rd2 {[%clk 0:02:03]} 26. a3 {[%clk 0:02:30]}  Re2 {[%clk 0:01:59]} 27. Rf3+ {[%clk 0:02:27]}  Kg7 {[%clk 0:01:58]} 28. h4 {[%clk 0:02:28]}  Re5 {[%clk 0:01:52]} 29. g4 {[%clk 0:02:24]}  h6 {[%clk 0:01:36]} 30. Rff8 {[%clk 0:02:19]}  Re6 {[%clk 0:01:05]} 31. Rg8+ {[%clk 0:02:08]}  Kf6 {[%clk 0:01:04]} 32. Rcf8+ {[%clk 0:01:59]}  Ke5 {[%clk 0:01:04]} 33. Rh8 {[%clk 0:01:53]}  Rd4 {[%clk 0:00:49]} 34. f3 {[%clk 0:01:44]}  Ra4 {[%clk 0:00:44]} 35. Rxh6 {[%clk 0:01:40]}  Rxa3 {[%clk 0:00:44]} 36. h5 {[%clk 0:01:41]}  gxh5 {[%clk 0:00:41]} 37. Rxh5+ {[%clk 0:01:29]}  Kd6 {[%clk 0:00:40]} 38. g5 {[%clk 0:01:24]}  a5 {[%clk 0:00:37]} 39. Rh6 {[%clk 0:01:20]}  Rb3 {[%clk 0:00:24]} 40. Rxe6+ {[%clk 0:00:47]}  Kxe6 {[%clk 0:00:24]} 41. g6 {[%clk 0:00:48]}  Rb5 {[%clk 0:00:19]} 42. f4 {[%clk 0:00:45]}  Rb2+ {[%clk 0:00:17]} 43. Kf3 {[%clk 0:00:40]}  Ke7 {[%clk 0:00:11]} 44. g7 {[%clk 0:00:38]}  Rb3+ {[%clk 0:00:06]} 45. Ke4 {[%clk 0:00:37]}  Rb4+ {[%clk 0:00:06]} 46. Kd3 {[%clk 0:00:34]}  Rb3+ {[%clk 0:00:06]} 47. Kc4 {[%clk 0:00:33]}  Rg3 {[%clk 0:00:06]} 48. g8=Q {[%clk 0:00:33]}  Rxg8 {[%clk 0:00:06]} 49. Rxg8 {[%clk 0:00:34]} 1-0


[Site "https://www.chess.com"]